fUSD/lending_fUSD_20240927
["ID","MTS","AMOUNT","RATE_DAILY","PERIOD"]
[339351082,1727458254780,-151.0,0.000128,2]
[339351084,1727458254789,-151.0,0.000128,2]
[339351086,1727458254799,-151.0,0.000128,2]
[339351088,1727458254809,-748.799981,0.000128,2]
[339351090,1727458254818,-748.799981,0.000128,2]
[339351092,1727458254828,-616.979651,0.000128,2]
[339351094,1727458254837,-616.979651,0.000128,2]
[339351096,1727458254846,-168.75659744,0.000128,2]
[339351098,1727458254855,-151.0,0.000128,2]
[339351100,1727458254865,-151.0,0.000128,2]
[339351102,1727458254878,-151.0,0.000128,2]
[339351104,1727458254889,-624.211411,0.000128,2]
[339351106,1727458254899,-624.211411,0.000128,2]
[339351108,1727458254909,-360.064182,0.000128,2]
[339351110,1727458254923,-360.064182,0.000128,2]
[339351112,1727458254932,-248.74999,0.000128,2]
[339351114,1727458254941,-248.74999,0.000128,2]
[339351116,1727458254951,-151.0,0.000128,2]
[339351118,1727458254962,-260.135246,0.000128,2]
[339351120,1727458254972,-260.135246,0.000128,2]
[339351122,1727458254982,-2222.64829833,0.000128,2]
[339351124,1727458254994,-697.94071507,0.000128,2]
[339351126,1727458255003,-697.94071507,0.000128,2]
[339351128,1727458255013,-697.94071507,0.000128,2]
[339351130,1727458255023,-697.94071507,0.000128,2]
[339351132,1727458255033,-697.94071507,0.000128,2]
[339351134,1727458255043,-697.94071507,0.000128,2]
[339351136,1727458255053,-697.94071507,0.000128,2]
[339351138,1727458255063,-697.94071507,0.000128,2]
[339351140,1727458255073,-697.94071507,0.000128,2]
[339351142,1727458255084,-697.94071507,0.000128,2]
[339351144,1727458255094,-697.94071507,0.000128,2]
[339351147,1727458255104,-697.94071507,0.000128,2]
[339351148,1727458255113,-697.94071507,0.000128,2]
[339351150,1727458255123,-697.94071507,0.000128,2]
[339351152,1727458255133,-697.94071507,0.000128,2]
[339351154,1727458255143,-697.94071507,0.000128,2]
[339351156,1727458255153,-697.94071507,0.000128,2]
[339351158,1727458255163,-697.94071507,0.000128,2]
[339351160,1727458255173,-697.94071507,0.000128,2]
[339351162,1727458255183,-698.44,0.000128,2]
[339351164,1727458255193,-226.99442648,0.000128,2]
[339351166,1727458255203,-226.99442648,0.000128,2]
[339351169,1727458255213,-226.99442648,0.000128,2]
[339351171,1727458255223,-226.99442648,0.000128,2]
[339351173,1727458255233,-226.99442648,0.000128,2]
[339351175,1727458255243,-226.99442648,0.000128,2]
[339351177,1727458255253,-226.99442648,0.000128,2]
[339351178,1727458255262,-226.99442648,0.000128,2]
[339351179,1727458255272,-226.99442648,0.000128,2]
[339351180,1727458255282,-226.99442648,0.000128,2]
[339351181,1727458255291,-226.99442648,0.000128,2]
[339351182,1727458255301,-226.99442648,0.000128,2]
[339351183,1727458255311,-226.99442648,0.000128,2]
[339351184,1727458255321,-226.99442648,0.000128,2]
[339351185,1727458255331,-226.99442648,0.000128,2]
[339351186,1727458255340,-226.99442648,0.000128,2]
[339351187,1727458255351,-226.99442648,0.000128,2]
[339351188,1727458255361,-226.99442648,0.000128,2]
[339351189,1727458255374,-226.99442648,0.000128,2]
[339351190,1727458255385,-227.49,0.000128,2]
[339351191,1727458255394,-294.12156809,0.000128,2]
[339351192,1727458255403,-294.12156809,0.000128,2]
[339351193,1727458255412,-294.12156809,0.000128,2]
[339351194,1727458255423,-294.12156809,0.000128,2]
[339351195,1727458255432,-294.12156809,0.000128,2]
[339351196,1727458255442,-294.12156809,0.000128,2]
[339351197,1727458255453,-294.12156809,0.000128,2]
[339351198,1727458255462,-294.12156809,0.000128,2]
[339351199,1727458255472,-294.12156809,0.000128,2]
[339351200,1727458255482,-294.12156809,0.000128,2]
[339351201,1727458255492,-294.12156809,0.000128,2]
[339351202,1727458255502,-294.12156809,0.000128,2]
[339351203,1727458255512,-294.12156809,0.000128,2]
[339351204,1727458255522,-294.12156809,0.000128,2]
[339351205,1727458255532,-294.12156809,0.000128,2]
[339351206,1727458255542,-294.12156809,0.000128,2]
[339351207,1727458255551,-294.12156809,0.000128,2]
[339351208,1727458255616,-294.12156809,0.000128,2]
[339351209,1727458255637,-294.12156809,0.000128,2]
[339351210,1727458255647,-294.62,0.000128,2]
[339351211,1727458255657,-322.08416175,0.000128,2]
[339351212,1727458255666,-178.92529619,0.00012802,2]
[339351213,1727458255676,-1000.0,0.00012804,2]
[339351214,1727458255685,-1000.0,0.00012812,2]
[339351215,1727458255695,-1000.0,0.0001282,2]
[339351216,1727458255705,-500.0,0.00012822,2]
[339351217,1727458255715,-7344.01,0.00012822,2]
[339351218,1727458255725,-5150.38,0.00012822,2]
[339351219,1727458255734,-1734.8,0.00012822,2]
[339351220,1727458255744,-1227.72,0.00012822,2]
[339351221,1727458255753,-1227.94,0.00012822,2]
[339351222,1727458255763,-4736.82,0.00012822,2]
[339351223,1727458255774,-500.0,0.00012822,2]
[339351224,1727458255784,-3638.21,0.00012822,2]
[339351225,1727458255793,-11174.34,0.00012822,2]
[339351226,1727458255802,-1942.34,0.00012822,2]
[339351227,1727458255814,-271.59709686,0.00012822,2]
[339351228,1727458255824,-809.59,0.00012822,2]
[339351229,1727458255833,-2314.54,0.00012822,2]
[339351230,1727458255843,-2082.08,0.00012822,2]
[339351231,1727458255852,-3438.74,0.00012822,2]
[339351232,1727458255862,-1221.44,0.00012822,2]
[339351233,1727458255872,-1862.956107,0.00012822,2]
[339351234,1727458255882,-1862.956107,0.00012822,2]
[339351235,1727458255891,-3011.88,0.00012822,2]
[339351236,1727458255901,-1579.4,0.00012822,2]
[339351237,1727458255911,-500.0,0.00012823,2]
[339351238,1727458255924,-4399.1,0.00012823,2]
[339351239,1727458255934,-2320.35,0.00012823,2]
[339351240,1727458255944,-1292.62,0.00012823,2]
[339351241,1727458255953,-517.93,0.00012823,2]
[339351242,1727458255964,-34543.51369065,0.00012824,2]
[339351243,1727458255974,-242.650825,0.00012824,2]
[339351244,1727458255983,-242.650825,0.00012824,2]
[339351245,1727458255994,-151.0,0.00012824,2]
[339351246,1727458256004,-151.0,0.00012824,2]
[339351247,1727458256014,-150.0,0.00012825,2]
[339351248,1727458256023,-1000.0,0.00012828,2]
[339351249,1727458256033,-845.8,0.00012835,2]
[339351250,1727458256042,-739.39,0.00012835,2]
[339351251,1727458256051,-372.40673539,0.00012836,2]
[339351252,1727458256061,-150.0,0.00012836,2]
[339351253,1727458256071,-150.0,0.00012836,2]
[339351254,1727458256081,-150.0,0.00012836,2]
[339351255,1727458256090,-1000.0,0.00012836,2]
[339351256,1727458256100,-150.0,0.00012841,2]
[339351257,1727458256110,-150.0,0.00012844,2]
[339351258,1727458256121,-1000.0,0.00012844,2]
[339351259,1727458256131,-150.0,0.00012845,2]
[339351260,1727458256140,-150.0,0.00012845,2]
[339351261,1727458256150,-150.0,0.00012846,2]
[339351262,1727458256160,-3616.61253385,0.0001285,3]
[339351263,1727458256170,-25000.0,0.0001285,2]
[339351264,1727458256179,-151.0,0.0001285,2]
[339351265,1727458256189,-151.0,0.0001285,2]
[339351266,1727458256199,-150.0,0.00012852,2]
[339351267,1727458256209,-1000.0,0.00012853,2]
[339351268,1727458256219,-151.0,0.0001286,2]
[339351269,1727458256229,-151.0,0.0001286,2]
[339351270,1727458256239,-1000.0,0.00012861,2]
[339351271,1727458256248,-150.0,0.00012862,2]
[339351272,1727458256258,-591.83,0.00012867,2]
[339351273,1727458256267,-1031.73,0.00012867,2]
[339351274,1727458256277,-1159.24,0.00012867,2]
[339351275,1727458256286,-781.46,0.00012867,2]
[339351276,1727458256295,-1096.51,0.00012867,2]
[339351277,1727458256305,-151.0,0.00012867,2]
[339351278,1727458256314,-176.776965,0.00012867,2]
[339351279,1727458256323,-4271.421985,0.00012867,2]
[339351280,1727458256333,-151.0,0.00012867,2]
[339351281,1727458256342,-4271.421985,0.00012867,2]
[339351282,1727458256351,-151.0,0.00012867,2]
[339351283,1727458256361,-151.0,0.00012867,2]
[339351284,1727458256372,-541.537463,0.00012867,2]
[339351285,1727458256381,-151.0,0.00012867,2]
[339351286,1727458256391,-541.537463,0.00012867,2]
[339351287,1727458256401,-208.065473,0.00012867,2]
[339351288,1727458256411,-208.065473,0.00012867,2]
[339351289,1727458256421,-151.0,0.00012867,2]
[339351290,1727458256430,-282.703521,0.00012867,2]
[339351291,1727458256440,-214.357068,0.00012867,2]
[339351292,1727458256450,-207.637025,0.00012867,2]
[339351293,1727458256460,-214.357068,0.00012867,2]
[339351294,1727458256470,-1467.01,0.00012867,2]
[339351295,1727458256480,-162.16936,0.00012867,2]
[339351296,1727458256489,-533.555095,0.00012867,2]
[339351297,1727458256500,-533.555095,0.00012867,2]
[339351298,1727458256510,-2167.57,0.00012867,2]
[339351299,1727458256519,-2036.302866,0.00012867,2]
[339351300,1727458256529,-2036.302866,0.00012867,2]
[339351301,1727458256539,-526.689524,0.00012867,2]
[339351302,1727458256549,-526.689524,0.00012867,2]
[339351303,1727458256559,-151.0,0.00012867,2]
[339351304,1727458256568,-548.699031,0.00012867,2]
[339351305,1727458256579,-548.699031,0.00012867,2]
[339351306,1727458256588,-619.123798,0.00012867,2]
[339351307,1727458256599,-619.123798,0.00012867,2]
[339351308,1727458256608,-152.513249,0.00012867,2]
[339351309,1727458256618,-152.513249,0.00012867,2]
[339351310,1727458256629,-151.0,0.00012867,2]
[339351311,1727458256639,-151.0,0.00012867,2]
[339351312,1727458256649,-2209.26,0.00012867,2]
[339351313,1727458256659,-1793.09,0.00012867,2]
[339351314,1727458256669,-1278.54,0.00012867,2]
[339351315,1727458256679,-491.018369,0.00012868,2]
[339351316,1727458256688,-151.0,0.00012868,2]
[339351317,1727458256698,-491.018369,0.00012868,2]
[339351318,1727458256707,-151.0,0.00012868,2]
[339351319,1727458256717,-151.0,0.00012868,2]
[339351320,1727458256727,-151.0,0.00012868,2]
[339351321,1727458256737,-248.799388,0.00012868,2]
[339351322,1727458256746,-151.0,0.00012868,2]
[339351323,1727458256756,-151.0,0.00012868,2]
[339351324,1727458256765,-151.0,0.00012868,2]
[339351325,1727458256775,-151.0,0.00012868,2]
[339351326,1727458256784,-1429.518155,0.00012868,2]
[339351327,1727458256794,-1233.220533,0.00012868,2]
[339351328,1727458256803,-1429.518155,0.00012868,2]
[339351329,1727458256813,-1233.220533,0.00012868,2]
[339351330,1727458256822,-1688.204168,0.00012868,2]
[339351331,1727458256831,-1688.204168,0.00012868,2]
[339351332,1727458256841,-461.756734,0.00012868,2]
[339351333,1727458256850,-461.756734,0.00012868,2]
[339351334,1727458256859,-309.67018,0.00012868,2]
[339351335,1727458256868,-309.67018,0.00012868,2]
[339351336,1727458256880,-151.0,0.00012868,2]
[339351337,1727458256889,-426.409971,0.00012868,2]
[339351338,1727458256900,-817.119036,0.00012868,2]
[339351339,1727458256910,-817.119036,0.00012868,2]
[339351340,1727458256925,-426.409971,0.00012868,2]
[339351341,1727458256936,-436.637089,0.00012868,2]
[339351342,1727458256946,-436.637089,0.00012868,2]
[339351343,1727458256957,-151.0,0.00012868,2]
[339351344,1727458256969,-1640.09103,0.00012868,2]
[339351345,1727458256979,-1640.09103,0.00012868,2]
[339351346,1727458256988,-416.00990684,0.00012868,2]
[339351347,1727458257001,-1027.669378,0.00012868,2]
[339351348,1727458257011,-1027.669378,0.00012868,2]
[339351349,1727458257021,-504.1,0.00012868,2]
[339351350,1727458257031,-2385.892858,0.00012868,2]
[339351351,1727458257041,-2385.892858,0.00012868,2]
[339351352,1727458257050,-514.71,0.00012868,2]
[339351353,1727458257061,-500.0,0.00012868,2]
[339351354,1727458257070,-1000.0,0.00012869,2]
[339351355,1727458257080,-500.0,0.00012869,2]
[339351356,1727458257089,-4399.1,0.00012869,2]
[339351357,1727458257099,-632.9931252,0.00012869,2]
[339351358,1727458257108,-7344.01,0.00012869,2]
[339351359,1727458257118,-2320.35,0.00012869,2]
[339351360,1727458257129,-5150.38,0.00012869,2]
[339351361,1727458257138,-1734.8,0.00012869,2]
[339351362,1727458257149,-1292.62,0.00012869,2]
[339351363,1727458257160,-1227.72,0.00012869,2]
[339351364,1727458257169,-517.93,0.00012869,2]
[339351365,1727458257179,-1227.94,0.00012869,2]
[339351366,1727458257188,-4736.82,0.00012869,2]
[339351367,1727458257198,-500.0,0.00012869,2]
[339351368,1727458257208,-3638.21,0.00012869,2]
[339351369,1727458257219,-11174.34,0.00012869,2]
[339351370,1727458257229,-1942.34,0.00012869,2]
[339351371,1727458257238,-809.59,0.00012869,2]
[339351372,1727458257248,-2314.54,0.00012869,2]
[339351373,1727458257258,-2082.08,0.00012869,2]
[339351374,1727458257268,-3438.74,0.00012869,2]
[339351375,1727458257278,-1221.44,0.00012869,2]
[339351376,1727458257287,-3011.88,0.00012869,2]
[339351377,1727458257297,-845.8,0.00012869,2]
[339351378,1727458257307,-739.39,0.00012869,2]
[339351379,1727458257317,-1579.4,0.00012869,2]
[339351380,1727458257326,-11887.04071878,0.0001287,2]
[339351381,1727458257335,-80778.13448406,0.0001287,2]
[339351382,1727458257345,-14079.98701332,0.0001287,2]
[339351383,1727458257355,-151.0,0.0001287,2]
[339351384,1727458257364,-201.666593,0.00012873,2]
[339351385,1727458257374,-160.92284978,0.00012873,2]
[339351386,1727458257383,-500.0,0.00012873,2]
[339351387,1727458257393,-500.0,0.00012873,2]
[339351388,1727458257402,-500.0,0.00012873,2]
[339351389,1727458257412,-500.0,0.00012873,2]
[339351390,1727458257422,-508.51336394,0.00012873,2]
[339351391,1727458257431,-500.0,0.00012873,2]
[339351392,1727458257440,-500.0,0.00012873,2]
[339351393,1727458257450,-500.0,0.00012873,2]
[339351394,1727458257460,-508.18351554,0.00012873,2]
[339351395,1727458257469,-203.68673906,0.00012873,2]
[339351396,1727458257479,-1000.0,0.00012877,2]
[339351397,1727458257488,-2630.77625316,0.00012878,3]
[339351398,1727458257498,-151.0,0.00012878,2]
[339351399,1727458257507,-913.635573,0.00012878,2]
[339351400,1727458257516,-151.0,0.00012878,2]
[339351401,1727458257525,-913.635573,0.00012878,2]
[339351402,1727458257535,-150.0,0.00012878,2]
[339351403,1727458257545,-244.45,0.00012884,2]
[339351404,1727458257554,-1000.0,0.00012885,2]
[339351405,1727458257564,-150.0,0.00012888,2]
[339351406,1727458257574,-1000.0,0.00012893,2]
[339351407,1727458257583,-179.99,0.00012893,2]
[339351408,1727458257593,-504.1,0.00012897,2]
[339351409,1727458257603,-1467.01,0.00012897,2]
[339351410,1727458257613,-514.71,0.00012897,2]
[339351411,1727458257624,-7344.01,0.00012897,2]
[339351412,1727458257634,-5150.38,0.00012897,2]
[339351413,1727458257644,-2167.57,0.00012897,2]
[339351414,1727458257653,-1734.8,0.00012897,2]
[339351415,1727458257662,-1227.72,0.00012897,2]
[339351416,1727458257672,-328.47,0.00012897,2]
[339351417,1727458257681,-1227.94,0.00012897,2]
[339351418,1727458257691,-4736.82,0.00012897,2]
[339351419,1727458257701,-500.0,0.00012897,2]
[339351420,1727458257710,-3638.21,0.00012897,2]
[339351421,1727458257720,-11174.34,0.00012897,2]
[339351422,1727458257730,-1942.34,0.00012897,2]
[339351423,1727458257740,-2209.26,0.00012897,2]
[339351424,1727458257750,-809.59,0.00012897,2]
[339351425,1727458257760,-2314.54,0.00012897,2]
[339351426,1727458257770,-2082.08,0.00012897,2]
[339351427,1727458257780,-3438.74,0.00012897,2]
[339351428,1727458257790,-1793.09,0.00012897,2]
[339351429,1727458257800,-1221.44,0.00012897,2]
[339351430,1727458257809,-1278.54,0.00012897,2]
[339351431,1727458257819,-3011.88,0.00012897,2]
[339351432,1727458257829,-845.8,0.00012897,2]
[339351433,1727458257838,-739.39,0.00012897,2]
[339351434,1727458257848,-1579.4,0.00012897,2]
[339351435,1727458257857,-591.83,0.00012898,2]
[339351436,1727458257867,-591.83,0.00012898,2]
[339351437,1727458257877,-591.83,0.00012898,2]
[339351438,1727458257887,-591.83,0.00012898,2]
[339351439,1727458257897,-591.97218341,0.00012898,2]
[339351440,1727458257906,-1031.73,0.00012898,2]
[339351441,1727458257919,-1031.73,0.00012898,2]
[339351442,1727458257928,-1031.73,0.00012898,2]
[339351443,1727458257937,-1031.73,0.00012898,2]
[339351444,1727458257947,-1031.92738937,0.00012898,2]
[339351445,1727458257959,-1159.24,0.00012898,2]
[339351446,1727458257967,-1159.24,0.00012898,2]
[339351447,1727458257977,-1159.24,0.00012898,2]
[339351448,1727458257987,-1159.24,0.00012898,2]
[339351449,1727458257997,-1159.41956401,0.00012898,2]
[339351450,1727458258007,-781.46,0.00012898,2]
[339351451,1727458258016,-781.46,0.00012898,2]
[339351452,1727458258025,-781.46,0.00012898,2]
[339351453,1727458258034,-781.46,0.00012898,2]
[339351454,1727458258044,-781.58466397,0.00012898,2]
[339351455,1727458258054,-1096.51,0.00012898,2]
[339351456,1727458258064,-1096.51,0.00012898,2]
[339351457,1727458258074,-1096.51,0.00012898,2]
[339351458,1727458258083,-1096.51,0.00012898,2]
[339351459,1727458258093,-1096.63,0.00012898,2]
[339351460,1727458258103,-504.1,0.00012898,2]
[339351461,1727458258112,-504.1,0.00012898,2]
[339351462,1727458258121,-504.1,0.00012898,2]
[339351463,1727458258135,-504.1,0.00012898,2]
[339351464,1727458258144,-504.1,0.00012898,2]
[339351465,1727458258154,-504.16,0.00012898,2]
[339351466,1727458258164,-500.0,0.00012898,2]
[339351467,1727458258173,-500.0,0.00012898,2]
[339351468,1727458258182,-500.0,0.00012898,2]
[339351469,1727458258192,-500.0,0.00012898,2]
[339351470,1727458258201,-443.90918035,0.00012898,2]
[339351471,1727458258211,-1467.01,0.00012898,2]
[339351472,1727458258220,-1467.01,0.00012898,2]
[339351473,1727458258229,-1467.01,0.00012898,2]
[339351474,1727458258238,-1467.01,0.00012898,2]
[339351475,1727458258247,-1467.24563707,0.00012898,2]
[339351476,1727458258256,-4399.1,0.00012898,2]
[339351477,1727458258266,-4399.1,0.00012898,2]
[339351478,1727458258275,-4399.1,0.00012898,2]
[339351479,1727458258284,-4399.1,0.00012898,2]
[339351480,1727458258293,-4399.28529372,0.00012898,2]
[339351481,1727458258302,-514.71,0.00012898,2]
[339351482,1727458258311,-514.71,0.00012898,2]
[339351483,1727458258319,-7344.01,0.00012898,2]
[339351484,1727458258328,-514.71,0.00012898,2]
[339351485,1727458258338,-7344.01,0.00012898,2]
[339351486,1727458258347,-514.71,0.00012898,2]
[339351487,1727458258357,-1929.32144916,0.00012898,2]
[339351488,1727458258586,-5414.68855084,0.00012898,2]
[339351489,1727458258595,-514.71,0.00012898,2]
[339351490,1727458258606,-7344.01,0.00012898,2]
[339351491,1727458258616,-514.71,0.00012898,2]
[339351492,1727458258626,-7344.13565973,0.00012898,2]
[339351493,1727458258635,-2320.35,0.00012898,2]
[339351494,1727458258644,-2320.35,0.00012898,2]
[339351495,1727458258653,-2320.35,0.00012898,2]
[339351496,1727458258662,-2320.35,0.00012898,2]
[339351497,1727458258671,-2320.35093381,0.00012898,2]
[339351498,1727458258680,-5150.38,0.00012898,2]
[339351499,1727458258689,-5150.38,0.00012898,2]
[339351500,1727458258699,-5150.38,0.00012898,2]
[339351501,1727458258709,-5150.38,0.00012898,2]
[339351502,1727458258719,-5150.47191439,0.00012898,2]
[339351503,1727458258729,-2167.57,0.00012898,2]
[339351504,1727458258740,-2167.57,0.00012898,2]
[339351505,1727458258750,-670.45630502,0.00012898,2]
[339351506,1727458258927,-3299.99670001,0.00011709,2]
[339351507,1727458258945,-675.61089,0.00011709,2]
[339351508,1727458258959,-1082.80036005,0.00011709,2]
[339351509,1727458259287,-558.0,0.00011684,2]
[339351510,1727458259297,-118.10000001,0.00011709,2]
[339351511,1727458259308,-277.7184432,0.00011709,2]
[339351512,1727458322734,266.69,9.672e-05,2]
[339351513,1727458370398,174.67,0.00010959,2]
[339351514,1727458419109,463.27,0.00011104,2]
[339351515,1727458481571,150.39,0.0001111,2]
[339351516,1727458490520,400.0,0.00011013,2]
[339351518,1727458625988,468.95,0.00010913,2]
[339351519,1727458642766,23900.0,0.00010888,2]
[339351520,1727458694844,176.44679914,0.00011084,2]
[339351521,1727458796361,150.0,0.00010959,2]
[339351522,1727458817209,463.98,0.00010891,2]
[339351523,1727458847177,273.27,8.944e-05,2]
[339351524,1727458884437,270.9,0.00013918,30]
[339351525,1727458892961,852.63472118,0.00011107,2]
[339351526,1727458902503,250.0,0.00010823,2]
[339351528,1727458960318,-313.43,0.00011184,2]
[339351529,1727458960341,-273.27,0.00011207,2]
[339351530,1727458960366,-200.0,0.00011233,2]
[339351531,1727458960389,-250.0,0.00011253,2]
[339351532,1727458960412,-156.33,0.00011255,2]
[339351533,1727458960434,-250.0,0.00011263,2]
[339351534,1727458960456,-174.34,0.00011294,2]
[339351535,1727458960478,-193.12,0.00011459,2]
[339351536,1727458960499,-290.46,0.00011563,2]
[339351537,1727458960521,-876.37,0.00011563,2]
[339351538,1727458960542,-150.99,0.00011563,2]
[339351539,1727458960565,-1000.0,0.00011572,2]
[339351540,1727458960588,-300.0,0.00011572,2]
[339351541,1727458960610,-150.0,0.00011572,2]
[339351542,1727458960634,-7105.1925,0.00011573,2]
[339351543,1727458960657,-18316.4975,0.00011573,2]
[339351544,1727458961494,-17443.1161,0.00011573,2]
[339351545,1727458961520,-4483.762,0.00011573,2]
[339351546,1727458961543,-1000.0,0.00011573,2]
[339351547,1727458961564,-1391.9473,0.00011573,2]
[339351548,1727458961586,-3256.7515,0.00011573,2]
[339351549,1727458961608,-499.99,0.00011641,2]
[339351550,1727458961632,-1924.4331,0.00011641,2]
[339351551,1727458962375,-8453.6069,0.00011641,2]
[339351552,1727458962397,-150.99,0.00011641,2]
[339351553,1727458962419,-299.99,0.00011641,2]
[339351554,1727458962441,-885.9,0.00011641,2]
[339351555,1727458962462,-254.1,0.00011641,2]
[339351556,1727458962484,-1444.08,0.00011678,2]
[339351557,1727458962508,-297.9512,0.0001168,2]
[339351558,1727458962532,-18059.28189875,0.0001168,2]
[339351559,1727458962554,-154.10000125,0.0001168,2]
[339351560,1727458969656,192.6,0.00010959,2]
[339351561,1727458972693,-16150.0,0.0001168,2]
[339351562,1727459098494,5489.6825,0.00011084,2]
[339351563,1727459117076,2000.0,0.00011053,2]
[339351568,1727459329545,-13720.0,0.0001113,2]
[339351569,1727459401605,253.93,9.464e-05,2]
[339351611,1727459432007,-271.96394405,0.0001113,2]
[339351612,1727459432018,-928.03605595,0.0001113,2]
[339351613,1727459432030,-4207.88817068,0.0001113,2]
[339351614,1727459432042,-1452.0,0.0001113,2]
[339351616,1727459432053,-1947.2218158,0.0001113,2]
[339351617,1727459432064,-1372.89001352,0.0001113,2]
[339351618,1727459432074,-500.0,0.0001114,2]
[339351619,1727459432083,-458.23,0.00011141,2]
[339351620,1727459432092,-476.44797907,0.00011238,2]
[339351621,1727459432104,-262.69202093,0.00011238,2]
[339351622,1727459432113,-1.03797907,0.00011248,2]
[339351623,1727459432129,-3712.86295468,0.00011248,2]
[339351624,1727459432138,-885.91,0.00011316,2]
[339351625,1727459432148,-200.0,0.00011381,2]
[339351626,1727459432158,-680.0,0.00011391,2]
[339351627,1727459432167,-250.0,0.00011393,2]
[339351628,1727459432176,-200.0,0.00011427,2]
[339351629,1727459432185,-172.97,0.00011435,2]
[339351630,1727459432193,-372.8196,0.00011473,2]
[339351631,1727459432204,-150.0,0.00011589,2]
[339351632,1727459432213,-150.0,0.00011589,2]
[339351633,1727459432223,-150.0,0.00011589,2]
[339351634,1727459432233,-150.0,0.00011589,2]
[339351635,1727459432242,-194.63955812,0.00011589,2]
[339351636,1727459432252,-150.0,0.00011589,2]
[339351637,1727459432261,-150.00000001,0.00011589,2]
[339351638,1727459432271,-499.99,0.00011589,2]
[339351639,1727459432280,-150.0,0.00011644,2]
[339351640,1727459432290,-150.0,0.00011679,2]
[339351641,1727459432303,-1980.78388504,0.0001168,2]
[339351642,1727459432314,-3377.03584135,0.0001168,2]
[339351643,1727459432326,-805.54333186,0.0001168,2]
[339351644,1727459432338,-2704.6186405,0.0001168,2]
[339351645,1727459432348,-1274.8817,0.0001168,2]
[339351646,1727459432357,-138.77085324,0.0001168,2]
[339351647,1727459432379,-75.65324676,0.0001168,2]
[339351648,1727459432388,-1463.0877,0.00011704,2]
[339351649,1727459432398,-150.0,0.00011706,2]
[339351650,1727459432407,-253.93,0.00011728,2]
[339351651,1727459432417,-150.0,0.00011773,2]
[339351652,1727459432426,-500.0,0.0001178,2]
[339351653,1727459432436,-500.0,0.0001178,2]
[339351654,1727459432445,-502.03490577,0.0001178,2]
[339351655,1727459432455,-500.0,0.0001178,2]
[339351656,1727459432464,-267.00541907,0.0001178,2]
[339351657,1727459435036,-232.99458093,0.0001178,2]
[339351658,1727459435046,-500.0,0.0001178,2]
[339351659,1727459435055,-500.0,0.0001178,2]
[339351660,1727459435064,-500.0,0.0001178,2]
[339351661,1727459435073,-500.0,0.0001178,2]
[339351662,1727459435083,-500.0,0.0001178,2]
[339351663,1727459435092,-500.0,0.0001178,2]
[339351664,1727459435101,-500.0,0.0001178,2]
[339351665,1727459435110,-500.0,0.0001178,2]
[339351666,1727459435119,-500.0,0.0001178,2]
[339351667,1727459435128,-500.0,0.0001178,2]
[339351668,1727459435137,-303.68,0.0001178,2]
[339351669,1727459435147,-500.0,0.0001178,2]
[339351670,1727459435156,-500.0,0.0001178,2]
[339351671,1727459435166,-500.0,0.0001178,2]
[339351672,1727459435175,-500.0,0.0001178,2]
[339351673,1727459435185,-500.0,0.0001178,2]
[339351674,1727459435195,-500.0,0.0001178,2]
[339351675,1727459435205,-500.0,0.0001178,2]
[339351677,1727459435215,-500.0,0.0001178,2]
[339351679,1727459435224,-500.0,0.0001178,2]